Cogmind - Beta 13 X1 @@@ ROGUE MODE // 2023.07.08 @ 02:38:08 Player: Jezoensis Result: Escaped! Performance ------------- Evolutions (9) 4500 Regions Visited (31) 6200 Robots Destroyed (485) 2425 Value Destroyed (23297) 23297 Prototype IDs (46) 920 Alien Tech Used (0) 0 Bonus (22065) 22065 TOTAL SCORE: 59407 Bonus ------- Triggered High Security 500 High Alert Combat Kills 7460 Follower Combat Kills 3002 Entered Garrisons 1600 Used RIF Installer 5500 Entered DSFs 500 Aligned with FarCom 300 Built Enhanced Grunts 300 Met R17 at Cetus 500 Met R17 at Research 2000 Win 3000 Friendly Fire -2597 Cogmind --------- Core Integrity 1465/1600 Matter 167/300 Energy 268/350 System Corruption 36% Temperature Cool (-189) Movement Treading (152) Location To Epsilon Eridani Parts ------- > --- POWER (1) -------- Quantum Reactor > --- PROPULSION (4) --- Biometal Heavy Treads Advanced Heavy Siege Treads > --- UTILITY (15) ----- Advanced Cryofiber Web High-capacity Storage Unit Machine Analyzer Experimental Optical Array Improved Targeting Computer Advanced Target Analyzer Advanced Weapon Cycler Layered Medium Armor Plating Advanced Powered Armor Improved Focal Shield Relay Coupler [NC] (6) Relay Coupler [Swarmer] (42) Relay Coupler [Grunt] (35) Relay Coupler [Sentry] (4) Relay Coupler [Hunter] (23) > --- WEAPON (5) ------- Latent Energy Streamer Enhanced Nova Cannon Linear Accelerator Linear Accelerator (fused) Compact Mass Driver (fused) > --- INVENTORY (20) --- Quantum Reactor Improved Heavy Siege Treads Advanced Heavy Siege Treads Compact Matter Pod (0) Compact Matter Pod (0) Structural Scanner Improved Targeting Computer Advanced Weapon Cycler Focal Shield Long-range Tractor Beam Long-range Proton Cannon KE Penetrator Linear Accelerator Linear Accelerator Compact Mass Driver Advanced Remote Datajack Peak State ------------ > --- POWER ------------ Quantum Reactor > --- PROPULSION ------- Centrium Heavy Treads Advanced Heavy Siege Treads > --- UTILITY ---------- Advanced Cryofiber Web Advanced Coolant Injector High-capacity Storage Unit Experimental Optical Array Improved Targeting Computer Advanced Target Analyzer Improved Kinecellerator Advanced Weapon Cycler Layered Heavy Armor Plating Improved Focal Shield Relay Coupler [NC] Relay Coupler [Grunt] Relay Coupler [Sentry] Relay Coupler [Hunter] > --- WEAPON ----------- Heavy Wave Gun Heavy Wave Gun Enhanced Quantum Rifle Latent Energy Streamer Railgun > --- INVENTORY -------- Reinforced Quantum Reactor Advanced Heavy Siege Treads Energy Well Compact Matter Pod Compact Matter Pod Structural Scanner Seismic Detector Advanced Target Analyzer Advanced Weapon Cycler Focal Shield Long-range Tractor Beam Long-range Proton Cannon Linear Accelerator Linear Accelerator Linear Accelerator Compact Mass Driver Compact Mass Driver Tiamat Missile Launcher Advanced Remote Datajack [Rating: 176] Favorites ----------- Power Quantum Reactor Engine Improved Ion Engine Power Core Light Nuclear Core Reactor Quantum Reactor Propulsion Improved Medium Treads Treads Improved Medium Treads Leg Myomer Leg Wheel Wheel Utility Weapon Cycler Device Weapon Cycler Storage High-capacity Storage Unit Processor Advanced Visual Processing Unit Hackware Relay Coupler [Sentry] Protection Improved Light Armor Plating Weapon Advanced KE Penetrator Energy Gun Advanced Beam Rifle Energy Cannon Latent Energy Streamer Ballistic Gun Advanced KE Penetrator Ballistic Cannon Compact Mass Driver Launcher Heavy Rocket Launcher Special Weapon Improved Remote Datajack Impact Weapon Heavy Mace Slashing Weapon Great Axe Build | -11 -10 -10 -9 -9 -9 -8 -8 -8 -8 -8 -7 -7 -7 -7 -6 -6 -6 -6 -6 -6 -6 -5 -5 -4 -4 -3 -3 -3 -2 -2 -1 ------- Run | Jun Mat Min Mat Min Exi Min Mat Gar Mat Gar Fac Gar Fac Gar Fac Gar Ext Cet Arc Hub Gar Fac Gar Fac Gar Res Arm Lab Res DSF Acc Slots Evolved 18 | . . . 2 . . . 2 . . . 2 . . . 2 . . . . . . 2 . 2 . 2 . . 2 . 2 Power . | . . . . . . . . . . . . . . . . . . . . . . . . . . . . . . . . Propulsion 2 | . . . 1 . . . . . . . . . . . 1 . . . . . . . . . . . . . . . . Utility 13 | . . . 1 . . . 1 . . . 2 . . . 1 . . . . . . 2 . 2 . 1 . . 1 . 2 Weapon 3 | . . . . . . . 1 . . . . . . . . . . . . . . . . . . 1 . . 1 . . Parts Attached 946 | 8 25 . 36 . 2 5 44 34 16 26 28 52 17 29 40 77 59 19 6 3 15 13 29 37 51 25 93 . 6 26 125 Power 32 | 1 3 . 2 . . . 1 1 . 2 . 3 . 1 . 4 2 3 . . 1 . 1 . 1 . 2 . . 2 2 Engine 16 | 1 3 . 2 . . . 1 1 . 2 . . . . . 1 2 3 . . . . . . . . . . . . . Core 4 | . . . . . . . . . . . . 2 . . . 2 . . . . . . . . . . . . . . . Reactor 12 | . . . . . . . . . . . . 1 . 1 . 1 . . . . 1 . 1 . 1 . 2 . . 2 2 Propulsion 75 | 3 10 . 8 . 1 1 4 1 3 1 3 8 . 1 5 8 1 1 . . . . 3 . 2 2 4 . . . 5 Treads 48 | . 3 . 5 . 1 . 3 1 3 1 3 2 . . . 8 1 1 . . . . 3 . 2 2 4 . . . 5 Leg 12 | . . . . . . . . . . . . 6 . 1 5 . . . . . . . . . . . . . . . . Wheel 15 | 3 7 . 3 . . 1 1 . . . . . . . . . . . . . . . . . . . . . . . . Hover . | . . . . . . . . . . . . . . . . . . . . . . . . . . . . . . . . Flight . | . . . . . . . . . . . . . . . . . . . . . . . . . . . . . . . . Utility 386 | 2 2 . 7 . . . 18 15 5 9 12 12 8 7 22 25 24 5 3 . 8 9 14 25 24 14 35 . 3 14 64 Device 293 | 1 1 . 5 . . . 15 15 3 6 9 9 8 6 17 10 14 2 3 . 5 5 10 22 21 11 29 . 3 12 51 Storage 13 | 1 1 . . . . . . . . . . . . . 1 3 1 . . . 1 . 1 . . 1 3 . . . . Processor 14 | . . . 2 . . . 1 . . . 1 . . . . . 1 . . . . 1 . 2 . 1 2 . . 1 2 Hackware 29 | . . . . . . . 1 . 2 . 1 2 . . 3 3 3 . . . 1 2 2 1 3 1 1 . . . 3 Protection 37 | . . . . . . . 1 . . 3 1 1 . 1 1 9 5 3 . . 1 1 1 . . . . . . 1 8 Artifact . | . . . . . . . . . . . . . . . . . . . . . . . . . . . . . . . . Weapon 453 | 2 10 . 19 . 1 4 21 17 8 14 13 29 9 20 13 40 32 10 3 3 6 4 11 12 24 9 52 . 3 10 54 Energy Gun 86 | 1 1 . 7 . 1 1 8 4 . 1 8 9 2 5 2 15 1 2 . . . . . . 3 1 7 . 2 3 2 Energy Cannon 93 | . . . . . . . 3 . . 3 . 7 1 6 2 12 5 5 . 1 2 1 2 2 6 1 9 . 1 4 20 Ballistic Gun 105 | 1 6 . 8 . . 1 4 4 4 7 2 3 3 . . 4 4 2 2 1 3 1 6 5 9 3 12 . . . 10 Ballistic Cannon 35 | . . . . . . . . . . . . . . . . . 11 . 1 . . 1 . 1 1 2 6 . . 1 11 Launcher 51 | . 2 . 3 . . 2 2 4 1 2 1 4 1 4 1 1 2 . . . 1 . 3 . 3 2 8 . . 1 3 Special Weapon 52 | . 1 . 1 . . . . . 3 . 1 2 . 3 3 4 6 1 . 1 . 1 . 4 2 . 10 . . 1 8 Impact Weapon 6 | . . . . . . . 4 2 . . . . . . . . . . . . . . . . . . . . . . . Slashing Weapon 25 | . . . . . . . . 3 . 1 1 4 2 2 5 4 3 . . . . . . . . . . . . . . Piercing Weapon . | . . . . . . . . . . . . . . . . . . . . . . . . . . . . . . . . Special Melee Weapon . | . . . . . . . . . . . . . . . . . . . . . . . . . . . . . . . . Unidentified Prototypes 21 | . . . 4 . . . 3 . . . 4 . . . . . . 3 . . . . . 3 . 3 1 . . . . Corrupted Parts 20 | . . . . . . . . . . . . . . . . 8 . 2 . . . . 5 . . . 2 . . 2 1 System Corruption 133 | . . . . . . . . . . . . . . . . 50 . 16 . . . . 40 . . . 12 . . 7 8 Parts Lost 60 | . 1 . 4 . . . 1 1 . 2 2 10 . . 4 7 1 . . . . . . . 5 3 8 . . 4 7 Power 6 | . 1 . . . . . . . . 1 . 2 . . . 1 . . . . . . . . . . 1 . . . . Propulsion 16 | . . . 3 . . . . 1 . . . 4 . . 2 1 1 . . . . . . . 1 1 2 . . . . Utility 22 | . . . . . . . . . . 1 . 1 . . 2 5 . . . . . . . . 2 2 2 . . 2 5 Weapon 16 | . . . 1 . . . 1 . . . 2 3 . . . . . . . . . . . . 2 . 3 . . 2 2 Highest Loss Streak 7 | . 1 . 1 . . . 1 1 . 2 2 7 . . 4 3 1 . . . . . . . 2 2 3 . . 3 2 To Critical Strikes 1 | . . . . . . . . . . . . . . . . . . . . . . . . . 1 . . . . . . Average Slot Usage (%) 95 | . 99 100 98 100 100 100 99 99 100 98 97 95 100 100 99 99 99 94 93 93 93 93 91 88 88 88 88 90 91 87 91 Engine 3 | . 13 14 11 11 11 11 9 9 9 8 7 1 . . . 1 4 6 6 6 4 . . . . . . . . . . Reactor 2 | . . . . . . . . . . . . 1 7 7 6 3 . . . . 1 5 5 5 5 4 4 4 4 4 4 Treads 13 | . 1 . 11 11 11 11 9 14 26 26 23 14 . . . 22 26 22 20 20 20 17 14 10 10 9 8 9 8 8 8 Leg 2 | . . . . . . . . . . . . 7 23 23 26 2 . . . . . . . . . . . . . . . Wheel 3 | . 26 28 20 22 22 22 18 12 . . . . . . . . . . . . . . . . . . . . . . . Device 14 | . 14 14 9 11 11 11 17 8 3 8 15 19 15 18 16 12 7 12 14 20 19 16 10 14 21 19 12 9 13 14 16 Storage 6 | . 14 14 11 11 11 11 9 9 9 9 7 7 7 7 6 6 6 6 6 6 6 5 5 5 5 4 5 9 8 5 4 Processor 9 | . . . 11 11 11 11 9 9 9 9 13 7 7 7 5 . 4 6 6 6 6 10 11 10 10 11 18 19 17 14 15 Hackware 10 | . . . . . . . . . 14 8 . 6 7 3 7 8 16 13 11 6 6 17 17 21 14 19 18 19 17 17 19 Protection 4 | . . . . . . . . 9 . . 5 3 7 7 7 18 9 6 6 6 6 1 5 5 5 2 . . . 1 3 Energy Gun 5 | . 9 . 7 . . 9 15 17 16 3 11 11 14 7 12 7 . 1 . . . . . . 1 2 2 . 6 9 . Energy Cannon 1 | . . . . . . . . . . 5 . 2 . 4 . 6 . 5 1 . . . 3 . 3 . . . . 1 1 Ballistic Gun 7 | . 14 28 13 11 11 10 6 4 5 14 8 3 3 1 . 1 2 9 14 19 19 14 10 12 7 13 11 9 8 4 5 Ballistic Cannon 2 | . . . . . . . . . . . . . . . . . 11 . 3 . . . . 1 . . . 4 4 3 10 Special Weapon 1 | . 1 . . . . . . . 4 . . . . . 1 . 3 . . . . 1 . 1 2 . 1 4 1 . 1 Naked Turns . | . . . . . . . . . . . . . . . . . . . . . . . . . . . . . . . . Heaviest Build 140 | 14 34 34 35 33 35 35 45 48 40 49 45 59 53 60 80 96 89 85 80 81 85 85 92 90 97 100 95 89 100 117 140 Greatest Support 160 | 20 22 22 26 26 26 26 26 40 78 78 76 68 62 62 79 110 100 140 140 140 140 140 160 160 160 155 160 160 160 160 160 Greatest Overweight (x) 3 | . 3 1 1 1 1 1 1 2 2 . . 1 . . 1 . . . . . . . . . . . . . . . . Average Overweight (x) . | . . 1 1 1 1 1 1 1 . . . . . . . . . . . . . . . . . . . . . . . Largest Inventory Capacity 20 | 8 15 15 15 15 15 15 15 15 15 15 15 15 15 15 20 20 20 20 20 20 20 20 20 20 20 20 20 20 20 20 20 Average Capacity 17 | 6 12 15 15 15 15 15 15 15 15 15 15 15 15 15 19 19 20 20 20 20 20 20 20 20 20 20 20 20 20 20 20 Most Carried 20 | 8 15 15 15 15 15 15 15 15 15 15 15 15 15 15 20 20 20 20 20 20 20 20 20 20 20 20 20 17 20 20 20 Average Carried 17 | 4 10 15 14 15 14 14 14 14 14 14 14 14 14 14 18 18 19 19 19 20 19 19 19 19 19 19 18 17 18 18 19 Final Capacity 20 | 8 15 15 15 15 15 15 15 15 15 15 15 15 15 15 20 20 20 20 20 20 20 20 20 20 20 20 20 20 20 20 20 Final Carried 20 | 8 15 15 15 15 14 15 15 15 15 15 14 15 15 15 18 20 20 20 20 20 20 20 20 20 20 20 17 17 20 20 18 Class Distribution -------------------- 20% | Scavenger-Mutant 19% | Botlord-Mutant 18% | Mutant 11% | Scavenger-Skirmisher 6% | Botlord-Gunner 5% | Botlord-Skirmisher 5% | Skirmisher Dominant Class ---------------- Mutant | -10/Materials Mutant | -10/Mines Mutant | -9/Materials Mutant | -9/Mines Mutant | -9/Exiles Skirmisher | -8/Mines Assassin | -8/Materials Mutant | -8/Garrison Skirmisher | -8/Materials Scavenger-Mutant | -8/Garrison Scavenger-Skirmisher | -7/Factory Scavenger-Mutant | -7/Garrison Scavenger-Skirmisher | -7/Factory Mutant | -7/Garrison Bothacker-Assassin | -6/Factory Scavenger-Mutant | -6/Garrison Scavenger-Mutant | -6/Extension Scavenger-Mutant | -6/Cetus Scavenger-Skirmisher | -6/Archives Scavenger-Skirmisher | -6/Hub_04(d) Scavenger-Mutant | -6/Garrison Scavenger-Skirmisher | -5/Factory Botlord-Mutant | -5/Garrison Botlord-Mutant | -4/Factory Botlord-Mutant | -4/Garrison Scavenger-Skirmisher | -3/Research Botlord-Mutant | -3/Armory Botlord-Mutant | -3/Lab Botlord-Mutant | -2/Research Botlord-Gunner | -2/DSF Botlord-Mutant | -1/Access Resources | -11 -10 -10 -9 -9 -9 -8 -8 -8 -8 -8 -7 -7 -7 -7 -6 -6 -6 -6 -6 -6 -6 -5 -5 -4 -4 -3 -3 -3 -2 -2 -1 ----------- Run | Jun Mat Min Mat Min Exi Min Mat Gar Mat Gar Fac Gar Fac Gar Fac Gar Ext Cet Arc Hub Gar Fac Gar Fac Gar Res Arm Lab Res DSF Acc Matter Collected 21586 | 234 129 . 696 16 404 105 508 614 182 493 385 915 321 561 510 942 2080 273 131 . 371 173 542 981 1205 518 2905 . 150 882 4360 Remotely 10168 | . . . . . . . . 333 . 223 . 161 217 314 138 . 909 . 36 . 197 149 399 528 714 281 1769 . . 606 3194 Salvage Created 21696 | 35 265 . 888 . . 99 708 790 261 547 373 847 489 622 555 1543 1791 300 62 175 100 211 283 955 836 1019 4009 . . 905 3028 Parts 929 | 8 27 . 77 . . 11 47 43 15 19 14 31 21 29 27 58 61 16 2 7 7 18 16 41 41 49 114 . . 26 104 Haulers Intercepted 10 | . 1 . 2 . . . 3 . . . 2 . . . . . . . . 1 . . . 1 . . . . . . . Recyclers Shooed 6 | 1 1 . 1 . . . . . . . . . . . . . . . . . . . . . . 1 . . . . 2 Parts Field Recycled . | . . . . . . . . . . . . . . . . . . . . . . . . . . . . . . . . Retrieved Matter . | . . . . . . . . . . . . . . . . . . . . . . . . . . . . . . . . Parts Self-Destructed . | . . . . . . . . . . . . . . . . . . . . . . . . . . . . . . . . Prevented . | . . . . . . . . . . . . . . . . . . . . . . . . . . . . . . . . Kills | -11 -10 -10 -9 -9 -9 -8 -8 -8 -8 -8 -7 -7 -7 -7 -6 -6 -6 -6 -6 -6 -6 -5 -5 -4 -4 -3 -3 -3 -2 -2 -1 ------- Run | Jun Mat Min Mat Min Exi Min Mat Gar Mat Gar Fac Gar Fac Gar Fac Gar Ext Cet Arc Hub Gar Fac Gar Fac Gar Res Arm Lab Res DSF Acc Combat Hostiles Destroyed 386 | . 12 . 24 . . 5 12 23 5 16 4 24 6 21 8 23 25 3 1 1 7 1 12 11 21 11 57 . . 10 43 Guns 159 | . 4 . 17 . . 1 7 15 5 7 4 15 2 3 2 6 4 1 1 . 1 1 5 7 10 5 21 . . 3 12 Cannons 44 | . . . . . . . . . . . . . . . . 4 11 . . . . . . . 1 . 3 . . 3 22 AOE 147 | . 8 . 7 . . 4 4 8 . 9 . 9 3 17 3 3 7 . . . 6 . 7 4 8 5 24 . . 2 9 Classes Destroyed 23 | 1 7 . 1 . . . 2 3 1 . . . 2 . 1 1 1 . . . . . . . . 1 1 . . 1 . Worker 16 | . 2 . 1 . . . . . . . 1 . 2 . 1 . . . . 1 . 1 . 2 . 2 . . . . 3 Builder 15 | . 1 . 3 . . . 2 . . . . . 1 . 1 . . . . . . 2 . 1 . 1 . . . . 3 Tunneler 7 | 2 . . 1 . . 2 1 . 1 . . . . . . . . . . . . . . . . . . . . . . Hauler 10 | . 1 . 2 . . . 3 . . . 2 . . . . . . . . 1 . . . 1 . . . . . . . Recycler 24 | . 1 . . . . . 1 . . . 1 . 2 . 1 . 5 . . . . 1 . 1 . 2 . . . . 9 Carrier 1 | . . . . . . . . . . . . . . . . . . . . . . . . . . . 1 . . . . Mechanic 3 | . . . . . . . . . . . . . 1 . . . . . . . . . . . . . 2 . . . . Operator 4 | . . . . . . . 1 . . . . . . . . . 1 . . . . . . . . . 1 . . . 1 Watcher 12 | . 1 . 2 . . . . . 1 . . . . . . . 2 2 . . . . . . 1 1 . . . . 2 Swarmer 101 | . 6 . 12 . . 4 3 4 . 4 . 3 . 10 2 2 3 . . . 6 . 8 . 12 4 5 . . . 13 Cutter 3 | . . . . . . . . 3 . . . . . . . . . . . . . . . . . . . . . . . Saboteur 4 | . . . . . . . . . . . . . . . 1 . . . . . . . . . . . 3 . . . . Grunt 135 | . 6 . 6 . . 1 3 7 . 12 2 13 2 6 2 10 10 . . 1 . . 3 5 2 5 29 . . 6 4 Brawler 10 | . . . . . . . . . 1 . . . . . . 1 1 . . . . . 1 . . . 6 . . . . Duelist 12 | . . . . . . . . . . . . . 2 2 . 1 2 . . . 1 . . . . . 3 . . . 1 Protector 3 | . . . . . . . . . . . . . . . . . 1 . . . . . . . . . 2 . . . . Sentry 55 | . . . 6 . . . 4 5 3 . 1 4 1 3 3 6 4 . 1 . . . . 2 . 1 8 . . . 3 Specialist 8 | . . . . . . . 2 . . . . 2 . . . . . . . . . . . . . . 2 . . 2 . Hunter 15 | . . . . . . . . 1 1 . . . . . . . 1 1 . . . . . . 6 . . . . . 5 Programmer 36 | . . . . . . . . 3 . . 1 2 1 . . 3 . . . . . 1 . 4 . 1 4 . . 1 15 Heavy 1 | . . . . . . . . . . . . . . . . . . . . . . . . . . . . . . 1 . Behemoth 6 | . . . . . . . . . . . . . . . . 1 2 . . . . . . . 1 . . . . . 2 Cetus Guard 2 | . . . . . . . . . . . . . . . . . . 2 . . . . . . . . . . . . . Thug 1 | . . . . . . . . . . . . . . . . . 1 . . . . . . . . . . . . . . Revision 1 | . . . . . . . . . . . . . . . . . . . . . . . . . . 1 . . . . . Best Kill Streak 17 | 1 8 . 7 . . 4 5 8 3 5 2 6 10 9 4 5 8 3 1 3 6 2 8 5 6 6 17 . . 4 10 Combat Bots Only 15 | . 6 . 6 . . 4 4 8 2 5 1 6 4 9 3 5 8 2 1 1 6 1 8 4 6 4 15 . . 4 10 Max Kills in Single Turn 6 | 1 2 . 3 . . 4 3 4 1 4 1 2 4 3 2 2 5 1 1 2 3 2 4 4 3 6 4 . . 2 3 Gunslinging 1 | . . . . . . . 1 1 . . . . . . 1 . . . . . . . . . 1 1 . . . . . Exploded 4 | . 2 . 3 . . 4 3 4 . 4 . 2 3 3 1 1 3 . . . 3 . 3 4 3 4 2 . . 2 3 Melee . | . . . . . . . . . . . . . . . . . . . . . . . . . . . . . . . . Uniques/NPCs Destroyed . | . . . . . . . . . . . . . . . . . . . . . . . . . . . . . . . . Combat | -11 -10 -10 -9 -9 -9 -8 -8 -8 -8 -8 -7 -7 -7 -7 -6 -6 -6 -6 -6 -6 -6 -5 -5 -4 -4 -3 -3 -3 -2 -2 -1 -------- Run | Jun Mat Min Mat Min Exi Min Mat Gar Mat Gar Fac Gar Fac Gar Fac Gar Ext Cet Arc Hub Gar Fac Gar Fac Gar Res Arm Lab Res DSF Acc Damage Taken 22797 | . 369 . 1029 . . 27 643 984 227 593 294 1447 150 611 547 1680 1039 318 42 81 196 74 180 384 2119 737 3408 . . 1285 4333 Core 1942 | . 88 . 179 . . . 93 90 33 102 36 248 . 49 5 81 90 15 21 . . . 18 60 131 62 338 . . 68 135 Absorbed by Shields 82 | . . . . . . . . . . . . . . . . . 9 73 . . . . . . . . . . . . . Reduced by Siege Mode 1312 | . . . . . . . . . . . . . . . . . . . . . . . . 28 204 5 407 . . 266 402 Redirected to Shielding 192 | . . . . . . . . . . . . . . . 70 122 . . . . . . . . . . . . . . . Ignored by Resistances 1586 | . . . . . . . . . . . . . . . . 92 . . . . . . . 17 465 . 143 . . 230 639 Regen/Repaired (Parts) 962 | . . . . . . . . . . . . . . . . . 639 207 21 . 47 . 10 38 . . . . . . . Core Remaining (%) 74 | 100 . 64 . . . 55 . . . 42 . . . 52 . . . . . . 75 . 98 . 83 . . 69 . 95 91 Volleys Fired 1107 | 3 31 . 64 . . 9 43 44 24 29 16 52 10 41 31 68 98 30 8 2 11 23 15 38 68 14 123 . 1 36 175 Largest 5 | 2 2 . 2 . . 2 3 3 3 3 3 3 3 2 3 3 3 2 2 1 3 3 3 3 3 4 4 . 1 5 5 Hottest 358 | 70 100 . 100 . . 79 187 158 139 119 169 169 154 105 180 190 174 111 92 60 100 100 107 125 135 168 204 . 66 358 342 Shots Fired 2271 | 6 47 . 121 . . 18 112 118 39 74 38 92 22 50 48 123 175 31 14 2 16 35 27 76 138 44 260 . 1 101 443 Gun 1383 | 6 34 . 114 . . 16 100 109 25 68 34 73 18 24 21 81 26 12 9 . 14 25 21 56 109 39 185 . . 59 105 Cannon 630 | . . . . . . . 5 . . 2 . 1 2 5 7 34 129 17 5 2 . 8 . 8 19 2 28 . 1 40 315 Launcher 126 | . 11 . 6 . . 2 7 9 3 4 . 17 2 15 4 3 3 . . . 2 . 6 . 4 3 19 . . 1 5 Special 132 | . 2 . 1 . . . . . 11 . 4 1 . 6 16 5 17 2 . . . 2 . 12 6 . 28 . . 1 18 Kinetic 1244 | 3 19 . 72 . . 8 28 32 5 46 12 11 3 3 . 12 147 6 14 . 14 33 21 63 109 32 174 . 1 37 339 Thermal 554 | 3 17 . 42 . . 8 77 77 20 22 22 60 15 . . 17 4 6 . . . . . . 14 7 28 . . 40 75 Explosive 126 | . 11 . 6 . . 2 7 9 3 4 . 17 2 15 4 3 3 . . . 2 . 6 . 4 3 19 . . 1 5 Electromagnetic 218 | . . . 1 . . . . . . 2 . 3 2 26 28 86 4 17 . 2 . . . 1 5 2 11 . . 22 6 Robot Hit Streak 61 | 4 7 . 15 . . 6 11 9 6 9 21 15 9 16 11 23 7 6 5 1 4 9 6 18 53 14 45 . . 61 52 Robot Miss Streak 5 | . 3 . 2 . . 2 4 4 3 2 5 4 3 3 4 3 5 4 1 1 2 1 2 2 1 2 2 . . 2 4 Penetration Max 2 | . . . . . . . . . . . . . . . . . 1 . . . . 1 1 1 . 1 2 . . . 1 Secondary Targets 31 | . . . 2 . . . 2 2 1 2 . 5 . . 1 . . 1 . . . 1 1 2 2 1 7 . . 1 . Max Gunslinging Chain 1 | . . . 1 . . . 1 1 1 1 . 1 . . 1 . . 1 . . . 1 1 1 1 1 1 . . 1 . Shots Hit Robots 1479 | 4 30 . 80 . . 9 66 62 23 50 27 62 14 29 38 84 88 18 11 1 5 13 10 56 105 28 198 . . 79 289 Core Hits 926 | 2 25 . 44 . . 9 29 39 11 28 22 62 18 39 16 48 61 18 2 7 10 8 17 28 46 39 164 . . 28 106 Critical Kills 22 | . . . . . . . . . . . . . . . . . 6 . . . . 2 . 5 2 1 4 . . . 2 Critical Parts Destroyed 45 | . . . . . . . . . . . . . . . . . 21 . . . 2 1 1 4 5 1 7 . . 1 2 Critical Strikes 136 | . 1 . 3 . . . 3 3 2 4 . 3 1 . . 1 28 . 2 . 2 3 1 10 9 2 15 . . 7 36 Burn 24 | . 1 . 3 . . . 3 3 2 4 . 3 1 . . . . . . . . . . . . . . . . 3 1 Destroy 74 | . . . . . . . . . . . . . . . . . 28 . . . 2 3 1 9 9 2 15 . . 1 4 Blast 37 | . . . . . . . . . . . . . . . . . . . 2 . . . . 1 . . . . . 3 31 Corrupt 1 | . . . . . . . . . . . . . . . . 1 . . . . . . . . . . . . . . . Melee Attacks 69 | . . . . . . . 13 16 . 5 . 6 3 10 12 2 2 . . . . . . . . . . . . . . Impact 21 | . . . . . . . 13 8 . . . . . . . . . . . . . . . . . . . . . . . Slashing 48 | . . . . . . . . 8 . 5 . 6 3 10 12 2 2 . . . . . . . . . . . . . . Piercing . | . . . . . . . . . . . . . . . . . . . . . . . . . . . . . . . . Sneak Attacks 1 | . . . . . . . . . . . . . . . 1 . . . . . . . . . . . . . . . . Combat Hostiles . | . . . . . . . . . . . . . . . . . . . . . . . . . . . . . . . . Follow-up Attacks . | . . . . . . . . . . . . . . . . . . . . . . . . . . . . . . . . Damage Inflicted 63875 | 45 1255 . 1999 . . 399 1826 2001 512 1561 568 2596 1613 2152 923 2920 3870 872 294 639 581 431 1019 2221 3630 2161 13111 . . 2689 11987 Guns 23641 | 45 323 . 1406 . . 171 1181 1325 320 847 568 1254 286 313 358 1335 342 173 195 . 158 431 333 1480 2194 839 4715 . . 1206 1843 Cannons 13191 | . . . . . . . 54 . . . . . 8 13 113 449 1968 264 99 7 . . . 149 376 13 468 . . 1058 8152 Explosions 26818 | . 932 . 593 . . 228 591 676 192 714 . 1342 1319 1826 354 1136 1529 435 . 632 423 . 686 580 1060 1277 7928 . . 425 1940 Melee 98 | . . . . . . . . . . . . . . . 98 . . . . . . . . . . . . . . . . Ramming 127 | . . . . . . . . . . . . . . . . . 31 . . . . . . 12 . 32 . . . . 52 Kinetic 25206 | 9 184 . 836 . . 70 215 226 41 480 156 60 41 16 . 190 2243 57 294 . 158 431 333 1622 2364 638 4548 . . 1006 8988 Thermal 9750 | 36 139 . 575 . . 101 1203 1099 279 367 412 1194 603 . 126 447 55 160 . . . . . 89 181 201 692 . . 816 975 Explosive 15331 | . 932 . 550 . . 228 408 676 192 623 . 1229 439 1405 228 87 502 . . . 423 . 686 . 641 615 3972 . . 321 1174 Electromagnetic 13363 | . . . 38 . . . . . . 91 . 113 530 731 471 2196 1039 655 . 639 . . . 498 444 675 3899 . . 546 798 Impact . | . . . . . . . . . . . . . . . . . . . . . . . . . . . . . . . . Slashing 98 | . . . . . . . . . . . . . . . 98 . . . . . . . . . . . . . . . . Piercing . | . . . . . . . . . . . . . . . . . . . . . . . . . . . . . . . . Highest Corruption 97 | . . . . . . . . 1 4 8 2 7 13 23 . 68 72 91 91 97 97 1 41 9 21 4 52 52 . 10 36 Average Corruption 26 | . . . . . . . . 1 2 5 2 6 7 19 . 44 68 84 91 93 97 1 1 7 15 2 24 52 . 2 17 Corruption Purged . | . . . . . . . . . . . . . . . . . . . . . . . . . . . . . . . . Corruption Blocked 40 | . . . . . . . . . . . . . . . . . . . . . . . . . . . 40 . . . . Effects 673 | . . . . . . . . 4 12 19 3 32 19 33 . 79 104 27 5 8 45 1 6 11 58 12 66 . . 5 124 Message Errors 140 | . . . . . . . . . 3 4 . 6 4 8 . 18 18 3 2 . 6 1 2 2 14 1 10 . . 1 37 Matter Fused 122 | . . . . . . . . 1 1 3 1 7 4 4 . 13 20 2 . 6 11 . 1 5 13 . 13 . . . 17 Heat Flow Errors 76 | . . . . . . . . 1 1 . . 5 . 3 . 9 12 5 1 . 3 . 1 1 6 4 9 . . . 15 Energy Discharges 73 | . . . . . . . . . 2 4 1 4 5 6 . 5 9 3 . . 8 . 1 2 6 . 3 . . 2 12 Parts Rejected 8 | . . . . . . . . . . 2 . 1 . 1 . 1 . . 1 . . . . . . . . . . . 2 Parts Fused 6 | . . . . . . . . . . . . 1 . . . 1 . . . . 1 . . . . . 1 . . . 2 Data Loss (minor) 85 | . . . . . . . . 1 4 4 . 4 3 4 . 7 15 2 . . 6 . 1 . 6 3 9 . . . 16 Data Loss (major) 27 | . . . . . . . . . 1 . . 2 . 1 . 9 2 3 . . 2 . . . 2 1 1 . . 2 1 Misfires 27 | . . . . . . . . . . . 1 . 1 2 . 4 5 1 1 . 1 . . . 2 2 2 . . . 5 Alerts 14 | . . . . . . . . 1 . 1 . 1 . 1 . 1 1 . . . 1 . . . 2 . 2 . . . 3 Misdirections 17 | . . . . . . . . . . . . . . . . 3 2 2 . 2 . . . . 1 . 5 . . . 2 Weapon Failures 78 | . . . . . . . . . . 1 . 1 2 3 . 8 20 6 . . 6 . . 1 6 1 11 . . . 12 Overload Shots 4 | . . . . . . . . . . . . 1 3 . . . . . . . . . . . . . . . . . . Overflow Damage 1241 | . 1 . 52 . . . 36 11 . 40 . 2 173 45 77 . 91 . . . . . 71 25 17 102 115 . . 13 370 Projectiles 421 | . . . . . . . . . . . . . . . . . 62 . . . . . . 25 . . . . . 13 321 Explosions 744 | . 1 . 52 . . . 36 11 . 40 . 2 173 45 9 . 29 . . . . . 71 . 17 96 115 . . . 47 Melee 76 | . . . . . . . . . . . . . . . 68 . . . . . . . . . . 6 . . . . 2 Knockbacks 51 | . . . . . . . . . . . . . . . . . 16 . . . . . . 1 . . 3 . . 3 28 Impact . | . . . . . . . . . . . . . . . . . . . . . . . . . . . . . . . . Kinetic 46 | . . . . . . . . . . . . . . . . . 14 . . . . . . 1 . . 3 . . 3 25 Secondary 5 | . . . . . . . . . . . . . . . . . 2 . . . . . . . . . . . . . 3 Self-Inflicted Damage 1106 | . 89 . 103 . . . 14 . 2 44 . 80 19 48 74 44 . . . 83 . . . . . . 357 . . 1 148 Shots 31 | . 2 . 3 . . . 1 . 1 1 . 4 1 2 2 1 . . . 1 . . . . . . 8 . . 1 3 Rammed 11 | . . . . . . . . . . . . . . . . . 2 . . . . . . 2 . 2 . . . . 5 Targets Rammed 11 | . . . . . . . . . . . . . . . . . 2 . . . . . . 2 . 2 . . . . 5 Kicked . | . . . . . . . . . . . . . . . . . . . . . . . . . . . . . . . . Crushed . | . . . . . . . . . . . . . . . . . . . . . . . . . . . . . . . . Highest Temperature 491 | 30 152 . 311 . . 66 252 322 267 273 440 304 108 274 212 347 371 308 183 32 124 84 147 346 319 233 482 . 27 195 491 Average Temperature 88 | 18 41 . 96 . . 22 68 89 66 89 108 70 42 83 74 102 113 77 74 18 41 23 49 91 72 83 77 . 27 95 123 Received Heat Transfer 4429 | . 108 . 306 . . 18 198 252 108 387 105 525 27 132 166 282 198 . . . 27 27 18 54 562 75 548 . . 99 207 Effects 10 | . . . . . . . . . . . 1 . . 1 . 1 2 . . . . . . . . . 3 . . . 2 Shutdowns 2 | . . . . . . . . . . . 1 . . . . . 1 . . . . . . . . . . . . . . Energy Bleed 2 | . . . . . . . . . . . . . . 1 . . 1 . . . . . . . . . . . . . . Interference 6 | . . . . . . . . . . . . . . . . 1 . . . . . . . . . . 3 . . . 2 Siege Activations 44 | . . . . . . . . . . . . . . . . . . . 1 . 1 . 2 3 9 2 8 . . 5 13 Total Turns 661 | . . . . . . . . . . . . . . . . . . . 4 . 8 . 15 26 120 7 179 . . 94 208 Longest Duration 48 | . . . . . . . . . . . . . . . . . . . 4 . 8 . 9 10 36 4 48 . . 35 43 Robots Corrupted 42 | . . . . . . . . . . . . . 1 1 3 11 4 2 . 2 . . . . 2 1 13 . . 2 . Combat Hostiles 35 | . . . . . . . . . . . . . 1 1 3 10 3 2 . 1 . . . . 2 1 9 . . 2 . Parts Fried 102 | . . . . . . . . . . . . . 3 5 3 18 13 5 . . . . . 2 5 1 34 . . 6 7 Impact Corruptions 3 | . . . . . . . . . . . . . . . . . . . . . . . . . . 1 . . . . 2 Robots Melted 1 | . . . . . . . 1 . . . . . . . . . . . . . . . . . . . . . . . . Combat Hostiles 1 | . . . . . . . 1 . . . . . . . . . . . . . . . . . . . . . . . . Parts Melted 36 | . 3 . 2 . . 2 5 7 1 1 2 8 . . . 2 . . . . . . . . . 1 . . . . 2 Heat Transferred 16952 | 111 481 . 1369 . . 222 2209 2035 629 962 861 2557 720 . 50 735 111 235 . . . . . 50 222 222 803 . . 1221 1147 Parts Sabotaged . | . . . . . . . . . . . . . . . . . . . . . . . . . . . . . . . . Parts Stolen . | . . . . . . . . . . . . . . . . . . . . . . . . . . . . . . . . Parts Stripped . | . . . . . . . . . . . . . . . . . . . . . . . . . . . . . . . . Power Chain Reactions 5 | . . . 1 . . . . . . . . . . . 1 1 . 1 . . . . . . . . 1 . . . . Missiles Intercepted . | . . . . . . . . . . . . . . . . . . . . . . . . . . . . . . . . Latent Energy Used 6130 | . . . . . . . . . . 209 . 77 400 421 . 756 232 145 . 400 . . . 200 659 152 1490 . . 55 934 LE Corruption 111 | . . . . . . . . . . 4 . 2 6 10 . 15 4 3 . 6 . . . 3 12 3 26 . . 1 16 Alert | -11 -10 -10 -9 -9 -9 -8 -8 -8 -8 -8 -7 -7 -7 -7 -6 -6 -6 -6 -6 -6 -6 -5 -5 -4 -4 -3 -3 -3 -2 -2 -1 ------- Run | Jun Mat Min Mat Min Exi Min Mat Gar Mat Gar Fac Gar Fac Gar Fac Gar Ext Cet Arc Hub Gar Fac Gar Fac Gar Res Arm Lab Res DSF Acc Peak Influence 2525 | 10 439 46 685 267 . 189 449 969 532 634 398 871 831 1274 768 1198 970 1097 659 410 1128 923 1263 894 1552 1076 2525 . 19 324 1090 Initial 873 | . 6 46 17 267 . . 73 220 471 182 332 176 457 581 668 221 628 543 438 230 287 592 646 652 625 873 553 . . 14 194 Average 662 | 4 222 46 293 267 . 76 274 684 376 476 309 677 525 973 476 710 697 804 586 306 947 682 1102 738 1123 955 1385 . 10 125 584 Maximum Alert Level 5 | . 2 . 2 1 . . 2 3 2 2 1 3 3 4 3 4 3 3 2 2 4 3 4 3 4 3 5 . . 1 3 Low Security (%) 8 | 100 27 100 16 . . 100 21 . . 6 8 2 . . 33 . . . . . . . . . . . . . 100 86 2 Level 1 18 | . 62 . 61 100 . . 66 21 64 12 91 9 . . 15 13 . . . 61 14 . . . . . . . . 13 18 Level 2 29 | . 10 . 22 . . . 11 15 35 80 . 21 91 16 10 39 49 23 100 38 3 65 14 35 4 . 25 . . . 47 Level 3 32 | . . . . . . . . 62 . . . 66 8 70 41 40 50 76 . . 44 34 15 64 37 100 12 . . . 32 Level 4 8 | . . . . . . . . . . . . . . 12 . 6 . . . . 36 . 70 . 58 . 29 . . . . Level 5 . | . . . . . . . . . . . . . . . . . . . . . . . . . . . 2 . . . . High Security 1 | . . . . . . . . . . . . . . . . . . . . . . . . . . . 31 . . . . Max Security . | . . . . . . . . . . . . . . . . . . . . . . . . . . . . . . . . Sterilizations 1 | . . . . . . . . . . . . . . . . . . . . . . . . . . . . . . 1 . Squads Dispatched 65 | . 6 . 4 . . . 3 . . . 3 . 3 . 1 . 3 . . . . 3 . 2 . 7 20 . . 1 9 Investigation 9 | . 5 . 1 . . . 1 . . . 1 . . . . . . . . . . . . . . 1 . . . . . Extermination 9 | . . . . . . . . . . . . . 1 . . . . . . . . 2 . . . . 2 . . . 4 Reinforcement 26 | . 1 . 3 . . . 2 . . . 2 . 1 . . . 1 . . . . 1 . 2 . 6 1 . . 1 5 Assault 21 | . . . . . . . . . . . . . 1 . 1 . 2 . . . . . . . . . 17 . . . . Garrison . | . . . . . . . . . . . . . . . . . . . . . . . . . . . . . . . . Intercept . | . . . . . . . . . . . . . . . . . . . . . . . . . . . . . . . . Searches Triggered . | . . . . . . . . . . . . . . . . . . . . . . . . . . . . . . . . Construction Impeded 1 | . . . 1 . . . . . . . . . . . . . . . . . . . . . . . . . . . . Haulers Reinforced 4 | . . . . . . . . . . . 1 . . . . . . . . . . . . 1 . 2 . . . . . Active Scanning Responses . | . . . . . . . . . . . . . . . . . . . . . . . . . . . . . . . . Cargo Convoy Interrupts . | . . . . . . . . . . . . . . . . . . . . . . . . . . . . . . . . Stealth | -11 -10 -10 -9 -9 -9 -8 -8 -8 -8 -8 -7 -7 -7 -7 -6 -6 -6 -6 -6 -6 -6 -5 -5 -4 -4 -3 -3 -3 -2 -2 -1 --------- Run | Jun Mat Min Mat Min Exi Min Mat Gar Mat Gar Fac Gar Fac Gar Fac Gar Ext Cet Arc Hub Gar Fac Gar Fac Gar Res Arm Lab Res DSF Acc Distress Signals 22 | . 2 . 3 . . . 1 . . . 1 . . . . . 2 2 . . . 1 . . 1 6 3 . . . . Communications Jammed 214 | . . . . . . . . . . . . . . . 2 . 59 . . . . . . 1 . 11 92 . . . 49 Distress Signals 212 | . . . . . . . . . . . . . . . . . 59 . . . . . . 1 . 11 92 . . . 49 Times Spotted 577 | . 22 . 33 . . 6 24 23 13 13 8 24 11 18 19 27 53 14 3 2 15 3 9 13 22 21 111 . . 12 58 Peak Tracking Total 13 | . 11 . 8 . . 4 6 5 4 6 4 5 4 5 5 4 7 5 1 2 5 3 6 5 6 7 13 . . 4 8 Tactical Retreats 28 | . 4 . 1 . . . 1 1 . . . 4 . . 2 3 5 . . . . . . 2 . . 3 . . 1 1 Traps | -11 -10 -10 -9 -9 -9 -8 -8 -8 -8 -8 -7 -7 -7 -7 -6 -6 -6 -6 -6 -6 -6 -5 -5 -4 -4 -3 -3 -3 -2 -2 -1 ------- Run | Jun Mat Min Mat Min Exi Min Mat Gar Mat Gar Fac Gar Fac Gar Fac Gar Ext Cet Arc Hub Gar Fac Gar Fac Gar Res Arm Lab Res DSF Acc Traps Triggered 33 | . 3 . 1 . . . 1 6 2 . . 2 . 1 . 8 . . . 1 2 . . 1 . 1 1 . . 1 2 Indirectly 2 | . . . . . . . . . . . . . . . . 2 . . . . . . . . . . . . . . . Trap Hack Attempts . | . . . . . . . . . . . . . . . . . . . . . . . . . . . . . . . . Triggered . | . . . . . . . . . . . . . . . . . . . . . . . . . . . . . . . . Disarmed . | . . . . . . . . . . . . . . . . . . . . . . . . . . . . . . . . Reprogrammed 4 | . . . . . . . 4 . . . . . . . . . . . . . . . . . . . . . . . . Reused . | . . . . . . . . . . . . . . . . . . . . . . . . . . . . . . . . Traps Extracted . | . . . . . . . . . . . . . . . . . . . . . . . . . . . . . . . . Installed . | . . . . . . . . . . . . . . . . . . . . . . . . . . . . . . . . Triggered 2 | . . . . . . . . . . . . . . . . 2 . . . . . . . . . . . . . . . Machines | -11 -10 -10 -9 -9 -9 -8 -8 -8 -8 -8 -7 -7 -7 -7 -6 -6 -6 -6 -6 -6 -6 -5 -5 -4 -4 -3 -3 -3 -2 -2 -1 ---------- Run | Jun Mat Min Mat Min Exi Min Mat Gar Mat Gar Fac Gar Fac Gar Fac Gar Ext Cet Arc Hub Gar Fac Gar Fac Gar Res Arm Lab Res DSF Acc Machines Disabled 83 | . . . 1 . . . 4 2 1 1 . 2 14 1 1 4 3 . 4 1 2 2 2 8 3 1 17 . . 1 8 Max in Single Turn 8 | . . . 1 . . . 1 1 1 1 . 1 8 1 1 1 2 . 1 1 1 1 1 2 1 1 2 . . 1 1 Garrison Access 5 | . . . . . . . . . . . . . . . 1 . . . . . . . . 1 . . . . . . 3 Garrison Relay 11 | . . . . . . . . 1 . 1 . 1 . 1 . 3 . . . . 1 . 1 . 2 . . . . . . Energy Cycler 2 | . . . . . . . . . . . . . . . . . 1 . . . . . . . . . . . . . 1 Machines Repaired . | . . . . . . . . . . . . . . . . . . . . . . . . . . . . . . . . Machines Sabotaged . | . . . . . . . . . . . . . . . . . . . . . . . . . . . . . . . . Overloaded Fab Kills . | . . . . . . . . . . . . . . . . . . . . . . . . . . . . . . . . Hacking | -11 -10 -10 -9 -9 -9 -8 -8 -8 -8 -8 -7 -7 -7 -7 -6 -6 -6 -6 -6 -6 -6 -5 -5 -4 -4 -3 -3 -3 -2 -2 -1 --------- Run | Jun Mat Min Mat Min Exi Min Mat Gar Mat Gar Fac Gar Fac Gar Fac Gar Ext Cet Arc Hub Gar Fac Gar Fac Gar Res Arm Lab Res DSF Acc Machines Accessed 72 | . 8 . 4 . 1 . 10 3 6 . 3 2 5 2 7 1 . . . 3 . 2 1 3 1 2 . . 2 . 6 Terminals 51 | . 6 . 4 . . . 9 3 5 . 1 2 2 2 4 1 . . . 2 . 1 1 1 1 1 . . 2 . 3 Fabricators 2 | . . . . . . . . . . . 1 . 1 . . . . . . . . . . . . . . . . . . Repair Stations . | . . . . . . . . . . . . . . . . . . . . . . . . . . . . . . . . Recycling Units 4 | . 2 . . . . . . . . . . . 1 . 1 . . . . . . . . . . . . . . . . Scanalyzers . | . . . . . . . . . . . . . . . . . . . . . . . . . . . . . . . . Garrison Access 14 | . . . . . . . 1 . 1 . 1 . 1 . 2 . . . . 1 . 1 . 2 . 1 . . . . 3 Total Hacks 181 | . 30 . 17 . 1 . 32 6 15 . 8 2 12 5 17 1 . . . 6 . 3 2 3 2 4 . . 5 . 10 Successful 88 | . 14 . 10 . 1 . 19 2 6 . 4 . 6 1 6 . . . . 4 . 1 1 2 . 2 . . 3 . 6 Failed 91 | . 15 . 7 . . . 12 4 9 . 4 2 6 4 11 1 . . . 2 . 2 1 1 2 2 . . 2 . 4 Catastrophic 20 | . 2 . 2 . . . . 1 2 . 1 1 1 1 4 1 . . . 1 . 1 . 1 1 . . . . . . Database Lockouts 2 | . 1 . . . . . 1 . . . . . . . . . . . . . . . . . . . . . . . . Manual 108 | . 25 . 14 . 1 . 26 . 12 . 4 . 8 . 13 . . 1 . 2 . . . . . . . . . . 2 Terminals 149 | . 25 . 17 . . . 31 6 14 . 4 2 6 5 14 1 . . . 5 . 2 2 1 2 3 . . 5 . 4 Fabricators 6 | . . . . . . . . . . . 3 . 3 . . . . . . . . . . . . . . . . . . Repair Stations . | . . . . . . . . . . . . . . . . . . . . . . . . . . . . . . . . Recycling Units 8 | . 5 . . . . . . . . . . . 2 . 1 . . . . . . . . . . . . . . . . Scanalyzers . | . . . . . . . . . . . . . . . . . . . . . . . . . . . . . . . . Garrison Access 17 | . . . . . . . 1 . 1 . 1 . 1 . 2 . . . . 1 . 1 . 2 . 1 . . . . 6 Terminal Hacks 39 | . 3 . 7 . 1 . 11 2 3 . . . 2 1 2 . . . . 2 . . 1 . . 1 . . 3 . . Robot Analysis 10 | . 1 . 5 . . . 3 . . . . . . . 1 . . . . . . . . . . . . . . . . Prototype ID Bank 1 | . . . . . . . . . 1 . . . . . . . . . . . . . . . . . . . . . . Open DSF 2 | . . . . . . . . . . . . . . . . . . . . . . . . . . 1 . . 1 . . Emergency Access Points 2 | . . . . . . . . 1 . . . . . 1 . . . . . . . . . . . . . . . . . Terminal Index 3 | . . . 1 . . . 1 . . . . . 1 . . . . . . . . . . . . . . . . . . Garrison Index 1 | . . . . . . . 1 . . . . . . . . . . . . . . . . . . . . . . . . Unreport Threat 6 | . 2 . . . . . 1 . 2 . . . . . 1 . . . . . . . . . . . . . . . . Locate Traps 6 | . . . 1 . . . 2 . . . . . 1 . . . . . . 1 . . . . . . . . 1 . . Reprogram Traps 1 | . . . . . . . 1 . . . . . . . . . . . . . . . . . . . . . . . . Registered Components 1 | . . . . . . . . . . . . . . . . . . . . . . . . . . . . . 1 . . Zone Layout 3 | . . . . . . . 2 . . . . . . . . . . . . 1 . . . . . . . . . . . Garrison Registry 1 | . . . . . . . . . . . . . . . . . . . . . . . 1 . . . . . . . . Security Stations 1 | . . . . . . . . 1 . . . . . . . . . . . . . . . . . . . . . . . Derelict Proto ID Bank 1 | . . . . . 1 . . . . . . . . . . . . . . . . . . . . . . . . . . Fabricator Hacks 1 | . . . . . . . . . . . 1 . . . . . . . . . . . . . . . . . . . . Network Status 1 | . . . . . . . . . . . 1 . . . . . . . . . . . . . . . . . . . . Repair Station Hacks . | . . . . . . . . . . . . . . . . . . . . . . . . . . . . . . . . Recycling Unit Hacks 2 | . 2 . . . . . . . . . . . . . . . . . . . . . . . . . . . . . . Process 1 | . 1 . . . . . . . . . . . . . . . . . . . . . . . . . . . . . . Retrieve Matter 1 | . 1 . . . . . . . . . . . . . . . . . . . . . . . . . . . . . . Scanalyzer . | . . . . . . . . . . . . . . . . . . . . . . . . . . . . . . . . Garrison Access Hacks 17 | . . . . . . . 1 . 1 . 1 . 1 . 2 . . . . 1 . 1 . 2 . 1 . . . . 6 Unlock Access 9 | . . . . . . . 1 . 1 . 1 . 1 . 1 . . . . 1 . 1 . 1 . 1 . . . . . Seal Access 5 | . . . . . . . . . . . . . . . 1 . . . . . . . . 1 . . . . . . 3 Coupler Status 3 | . . . . . . . . . . . . . . . . . . . . . . . . . . . . . . . 3 Unauthorized Hacks 29 | . 9 . 3 . . . 7 . 2 . 2 . 3 . 2 . . . . 1 . . . . . . . . . . . Terminals 22 | . 6 . 3 . . . 7 . 2 . 1 . 1 . 1 . . . . 1 . . . . . . . . . . . Track 9 | . 3 . 1 . . . 4 . . . . . . . . . . . . 1 . . . . . . . . . . . Botnet 10 | . 2 . 1 . . . 2 . 2 . 1 . 1 . 1 . . . . . . . . . . . . . . . . Operators 3 | . 1 . 1 . . . 1 . . . . . . . . . . . . . . . . . . . . . . . . Fabricators 2 | . . . . . . . . . . . 1 . 1 . . . . . . . . . . . . . . . . . . Fabnet 1 | . . . . . . . . . . . 1 . . . . . . . . . . . . . . . . . . . . Haulers 1 | . . . . . . . . . . . . . 1 . . . . . . . . . . . . . . . . . . Repair Stations . | . . . . . . . . . . . . . . . . . . . . . . . . . . . . . . . . Recycling Units 5 | . 3 . . . . . . . . . . . 1 . 1 . . . . . . . . . . . . . . . . Recyclers 3 | . 1 . . . . . . . . . . . 1 . 1 . . . . . . . . . . . . . . . . Tunnel 2 | . 2 . . . . . . . . . . . . . . . . . . . . . . . . . . . . . . Scanalyzers . | . . . . . . . . . . . . . . . . . . . . . . . . . . . . . . . . Garrison Access . | . . . . . . . . . . . . . . . . . . . . . . . . . . . . . . . . Data Cores Recovered 2 | . . . . . . . 1 . . . . . . . . . . . . . . . . . . . . . . . 1 Used . | . . . . . . . . . . . . . . . . . . . . . . . . . . . . . . . . Hacking Detections 60 | . 7 . 4 . . . 9 2 5 . 3 2 4 2 4 1 . 1 . 1 . 2 1 2 1 1 . . 2 . 6 Full Trace Events 6 | . 2 . 1 . . . . . . . 1 . . 1 . . . . . . . . . . 1 . . . . . . Feedback Events . | . . . . . . . . . . . . . . . . . . . . . . . . . . . . . . . . Feedback Blocked . | . . . . . . . . . . . . . . . . . . . . . . . . . . . . . . . . Robot Schematics Acquired . | . . . . . . . . . . . . . . . . . . . . . . . . . . . . . . . . Robots Built . | . . . . . . . . . . . . . . . . . . . . . . . . . . . . . . . . Authchips . | . . . . . . . . . . . . . . . . . . . . . . . . . . . . . . . . Time . | . . . . . . . . . . . . . . . . . . . . . . . . . . . . . . . . Total Robot Build Rating . | . . . . . . . . . . . . . . . . . . . . . . . . . . . . . . . . Part Schematics Acquired . | . . . . . . . . . . . . . . . . . . . . . . . . . . . . . . . . Parts Built . | . . . . . . . . . . . . . . . . . . . . . . . . . . . . . . . . Authchips . | . . . . . . . . . . . . . . . . . . . . . . . . . . . . . . . . Time . | . . . . . . . . . . . . . . . . . . . . . . . . . . . . . . . . Total Part Build Rating . | . . . . . . . . . . . . . . . . . . . . . . . . . . . . . . . . Parts Repaired . | . . . . . . . . . . . . . . . . . . . . . . . . . . . . . . . . Time . | . . . . . . . . . . . . . . . . . . . . . . . . . . . . . . . . Parts Recycled . | . . . . . . . . . . . . . . . . . . . . . . . . . . . . . . . . Recycled Matter 124 | . 124 . . . . . . . . . . . . . . . . . . . . . . . . . . . . . . Retrieved Matter 230 | . 230 . . . . . . . . . . . . . . . . . . . . . . . . . . . . . . Retrieved Components . | . . . . . . . . . . . . . . . . . . . . . . . . . . . . . . . . Parts Scanalyzed . | . . . . . . . . . . . . . . . . . . . . . . . . . . . . . . . . Part Schematics Acquired . | . . . . . . . . . . . . . . . . . . . . . . . . . . . . . . . . Parts Damaged . | . . . . . . . . . . . . . . . . . . . . . . . . . . . . . . . . Bothacking | -11 -10 -10 -9 -9 -9 -8 -8 -8 -8 -8 -7 -7 -7 -7 -6 -6 -6 -6 -6 -6 -6 -5 -5 -4 -4 -3 -3 -3 -2 -2 -1 ------------ Run | Jun Mat Min Mat Min Exi Min Mat Gar Mat Gar Fac Gar Fac Gar Fac Gar Ext Cet Arc Hub Gar Fac Gar Fac Gar Res Arm Lab Res DSF Acc Used RIF Installer 11 | . . . . . . . . 1 . 1 . 2 . 1 . 2 . . . . 1 . 1 . 2 . . . . . . Coupler Efficiency 2 | . . . . . . . . . . . . . . . . . . . . . . . . . 2 . . . . . . Hotswap 1 | . . . . . . . . . . . . . . . . 1 . . . . . . . . . . . . . . . Command Fork 2 | . . . . . . . . . . . . . . . . . . . . . 1 . 1 . . . . . . . . Signal Jammer 1 | . . . . . . . . . . . . 1 . . . . . . . . . . . . . . . . . . . Robot Detection 1 | . . . . . . . . . . . . . . . . 1 . . . . . . . . . . . . . . . Watcher Feeds 1 | . . . . . . . . . . . . . . 1 . . . . . . . . . . . . . . . . . Patrol Navigation 1 | . . . . . . . . . . 1 . . . . . . . . . . . . . . . . . . . . . Autooverride 1 | . . . . . . . . . . . . 1 . . . . . . . . . . . . . . . . . . . Robots Hacked 96 | . . . . . . . . . 6 . 2 . . 3 7 5 15 2 1 . . 2 . 6 5 1 24 . . 2 15 Non-combat 18 | . . . . . . . . . 4 . . . . . 4 . 4 . . . . . . 2 . . 2 . . . 2 Combat 78 | . . . . . . . . . 2 . 2 . . 3 3 5 11 2 1 . . 2 . 4 5 1 22 . . 2 13 Autooverrided 18 | . . . . . . . . . . . . . . . . 1 4 . 1 . . 1 . 1 . 1 6 . . 1 2 Robot Hacks Applied 103 | . . . . . . . . . 7 . 4 . . 4 12 3 15 1 . . . 2 . 9 6 . 23 . . 1 16 map_walls 1 | . . . . . . . . . 1 . . . . . . . . . . . . . . . . . . . . . . drop_inventory 5 | . . . . . . . . . 1 . . . . . 1 . 1 . . . . . . 1 . . . . . . 1 purge_threat 9 | . . . . . . . . . . . . . . . 3 . 2 . . . . . . 1 . . . . . . 3 block_reporting 3 | . . . . . . . . . . . . . . . 2 . . . . . . . . 1 . . . . . . . map_route 4 | . . . . . . . . . 2 . . . . . 1 . . . . . . . . . . . 1 . . . . redirect_shields 1 | . . . . . . . . . . . . . . . . . . . . . . . . . . . 1 . . . . find_garrison 7 | . . . . . . . . . 1 . 1 . . . 1 . . . . . . 1 . 2 . . . . . . 1 scatter_targeting 25 | . . . . . . . . . . . 2 . . 2 1 2 2 1 . . . 1 . 3 2 . 7 . . 1 1 link_complan 13 | . . . . . . . . . . . . . . . . . 2 . . . . . . 1 1 . 5 . . . 4 broadcast_data 3 | . . . . . . . . . . . . . . 1 . . . . . . . . . . 1 . 1 . . . . disrupt_area 6 | . . . . . . . . . . . . . . . 1 . 1 . . . . . . . . . 4 . . . . spike_heat 3 | . . . . . . . . . 1 . . . . . . . 2 . . . . . . . . . . . . . . overload_power 1 | . . . . . . . . . . . . . . . . 1 . . . . . . . . . . . . . . . disable_weapons 1 | . . . . . . . . . . . . . . . . . . . . . . . . . . . . . . . 1 go_dormant 1 | . . . . . . . . . . . . . . . 1 . . . . . . . . . . . . . . . . overwrite_iff 9 | . . . . . . . . . . . . . . . . . 4 . . . . . . . . . 3 . . . 2 streamctrl_high 1 | . . . . . . . . . . . . . . . 1 . . . . . . . . . . . . . . . . formatsys_low 1 | . . . . . . . . . . . . . . . . . 1 . . . . . . . . . . . . . . formatsys_high 8 | . . . . . . . . . 1 . 1 . . 1 . . . . . . . . . . 2 . . . . . 3 formatsys_deep 1 | . . . . . . . . . . . . . . . . . . . . . . . . . . . 1 . . . . Relay Couplers Released 56 | . . . . . . . . 4 . 5 . 8 . 3 . 11 . . . . 4 . 5 . 8 3 . . . . 5 Machine Destruction 45 | . . . . . . . . 4 . 5 . 4 . 3 . 11 . . . . 4 . 5 . 8 . . . . . 1 Programmers 11 | . . . . . . . . . . . . 4 . . . . . . . . . . . . . 3 . . . . 4 Attached 28 | . . . . . . . . . 2 . 1 2 . . 3 3 3 . . . 1 2 2 1 3 1 1 . . . 3 Fabnet Peak Effective % 3 | . . . . . . . . . . . . . . . 3 3 3 3 3 3 3 1 1 . . . . . . . . Autooverrided 3 | . . . . . . . . . . . . . . . . 1 1 1 . . . . . . . . . . . . . Robots Rewired 7 | . . . . . . . . . . . . . . . . . 7 . . . . . . . . . . . . . . Allies Hacked 1 | . . . . . . . . . . . . . . . . . . . . . . . . . . . 1 . . . . Hacks Repelled . | . . . . . . . . . . . . . . . . . . . . . . . . . . . . . . . . Allies | -11 -10 -10 -9 -9 -9 -8 -8 -8 -8 -8 -7 -7 -7 -7 -6 -6 -6 -6 -6 -6 -6 -5 -5 -4 -4 -3 -3 -3 -2 -2 -1 -------- Run | Jun Mat Min Mat Min Exi Min Mat Gar Mat Gar Fac Gar Fac Gar Fac Gar Ext Cet Arc Hub Gar Fac Gar Fac Gar Res Arm Lab Res DSF Acc Total Allies 80 | . . . . 3 . . . . 1 . 1 . . 1 1 2 18 6 1 . . 1 . 1 2 1 32 . . 1 8 Largest Group 18 | . . . . 3 3 3 2 . 1 1 1 . . 1 1 1 6 8 7 6 6 6 3 1 2 2 18 . . 1 2 Highest-Rated Group 879 | . . . . 40 40 40 26 . 15 15 32 . . 32 29 32 221 687 658 499 499 432 206 49 98 98 879 . . 58 99 Highest-Rated Ally 159 | . . . . 16 16 16 14 . 15 15 32 . . 32 29 32 159 159 159 96 96 96 96 49 49 64 58 . . 58 69 Total Orders 20 | . . . . . . . . . . 2 . . . . . . 3 4 1 . 3 1 3 1 2 . . . . . . STAY 6 | . . . . . . . . . . 1 . . . . . . . 1 . . 1 1 1 . 1 . . . . . . FOLLOW 6 | . . . . . . . . . . 1 . . . . . . 1 1 . . 1 . 1 . 1 . . . . . . AID 8 | . . . . . . . . . . . . . . . . . 2 2 1 . 1 . 1 1 . . . . . . . Ally Attacks 416 | . . . . . . 16 4 . 10 11 1 . . 5 4 3 61 46 18 2 31 37 13 . 19 4 102 . . 4 25 Total Damage 14031 | . . . . . . 202 26 . 228 207 27 . . 159 76 126 1842 1547 721 48 1512 1738 526 . 756 170 3154 . . 134 832 Kills 80 | . . . . . . 2 . . 3 1 . . . . . 1 11 14 3 1 10 13 4 . 2 1 11 . . 1 2 Allies Corrupted 7 | . . . . . . . . . . . . . . . . 1 . . . . . 1 . . . . 4 . . . 1 Allies Melted 1 | . . . . . . . . . . . . . . . . . . . . . . . . . . . 1 . . . . Intel | -11 -10 -10 -9 -9 -9 -8 -8 -8 -8 -8 -7 -7 -7 -7 -6 -6 -6 -6 -6 -6 -6 -5 -5 -4 -4 -3 -3 -3 -2 -2 -1 ------- Run | Jun Mat Min Mat Min Exi Min Mat Gar Mat Gar Fac Gar Fac Gar Fac Gar Ext Cet Arc Hub Gar Fac Gar Fac Gar Res Arm Lab Res DSF Acc Robot Analysis Total 10 | . 1 . 5 . . . 3 . . . . . . . 1 . . . . . . . . . . . . . . . . Derelict Logs Recovered 2 | . . 1 . 1 . . . . . . . . . . . . . . . . . . . . . . . . . . . Drone Launches . | . . . . . . . . . . . . . . . . . . . . . . . . . . . . . . . . Drone Recoveries . | . . . . . . . . . . . . . . . . . . . . . . . . . . . . . . . . Exploration | -11 -10 -10 -9 -9 -9 -8 -8 -8 -8 -8 -7 -7 -7 -7 -6 -6 -6 -6 -6 -6 -6 -5 -5 -4 -4 -3 -3 -3 -2 -2 -1 ------------- Run | Jun Mat Min Mat Min Exi Min Mat Gar Mat Gar Fac Gar Fac Gar Fac Gar Ext Cet Arc Hub Gar Fac Gar Fac Gar Res Arm Lab Res DSF Acc Turns Passed 21117 | 63 673 109 648 52 278 214 948 873 549 820 669 1138 561 604 692 1392 1452 361 106 105 674 553 532 739 1245 668 1141 13 209 343 2693 Spaces Moved 11542 | 49 579 110 381 44 260 166 666 513 303 419 354 609 443 413 467 668 639 153 39 58 385 296 275 371 606 370 458 9 119 115 1205 Core 19 | 19 . . . . . . . . . . . . . . . . . . . . . . . . . . . . . . . Treads 7168 | . . . . . . . . . 275 419 354 442 . . . 580 639 153 39 58 385 296 275 371 606 370 458 9 119 115 1205 Legs 1578 | . . . . . . . . . . . . 167 443 413 467 88 . . . . . . . . . . . . . . . Wheels 2777 | 30 579 110 381 44 260 166 666 513 28 . . . . . . . . . . . . . . . . . . . . . . Hover . | . . . . . . . . . . . . . . . . . . . . . . . . . . . . . . . . Flight . | . . . . . . . . . . . . . . . . . . . . . . . . . . . . . . . . Fastest Speed 50 | 50 80 100 100 105 105 105 105 105 130 155 160 110 110 110 112 120 160 160 160 160 160 160 160 160 152 152 152 160 160 160 152 Average Speed 140 | 68 93 100 100 105 105 105 105 120 152 159 160 148 110 110 112 154 160 160 160 160 160 160 160 160 158 154 153 160 160 160 168 Slowest Speed 190 | 80 125 100 105 105 105 105 105 130 158 160 160 186 110 110 190 160 160 160 160 160 160 160 160 160 160 157 160 160 160 160 180 Overloaded Moves . | . . . . . . . . . . . . . . . . . . . . . . . . . . . . . . . . Propulsion Burnouts . | . . . . . . . . . . . . . . . . . . . . . . . . . . . . . . . . Robots Hopped . | . . . . . . . . . . . . . . . . . . . . . . . . . . . . . . . . Cave-ins Triggered . | . . . . . . . . . . . . . . . . . . . . . . . . . . . . . . . . Exploration Rate (%) 46 | 3 89 27 51 8 66 46 71 74 47 73 11 70 18 72 22 69 79 68 71 15 59 15 47 20 68 25 62 6 4 88 55 Regions Visited 31 Branch Regions 10 Pre-discovered Areas 3 | . 2 1 . . . . . . . . . . . . . . . . . . . . . . . . . . . . . Known Exits Taken 9 | . . . . . . . 1 . 1 . 1 . 1 . 1 . . . . 1 . 1 . 1 . . . . 1 . . Unknown Exits Taken 13 | 1 1 1 1 1 1 1 . . . . . . . . . . 1 1 1 . . . . . . 1 1 1 . . . Scrap Searched 3 | . . . . 1 . 2 . . . . . . . . . . . . . . . . . . . . . . . . . Spaces Dug 108 | . 2 . 1 . . . 11 2 . . . 2 2 2 11 1 4 . . . . 18 1 3 . . 6 . 1 2 39 Terrain Destroyed 1733 | . 73 . 56 . . 25 93 49 25 9 . 115 96 135 77 61 90 9 . 38 14 24 33 73 85 40 290 . 1 19 203 Melee 31 | . . . . . . . 9 2 . . . 2 2 2 11 1 2 . . . . . . . . . . . . . . Projectile 229 | . 2 . 1 . . . 3 2 . . . 1 1 . . 2 27 4 . . 2 24 1 16 4 7 28 . 1 4 99 AOE 1471 | . 71 . 55 . . 25 81 45 25 9 . 112 93 133 66 58 61 5 . 38 12 . 32 57 80 33 261 . . 15 104 Terrain Rammed . | . . . . . . . . . . . . . . . . . . . . . . . . . . . . . . . . Walls Destroyed . | . . . . . . . . . . . . . . . . . . . . . . . . . . . . . . . . Machines Disabled . | . . . . . . . . . . . . . . . . . . . . . . . . . . . . . . . . Actions | -11 -10 -10 -9 -9 -9 -8 -8 -8 -8 -8 -7 -7 -7 -7 -6 -6 -6 -6 -6 -6 -6 -5 -5 -4 -4 -3 -3 -3 -2 -2 -1 --------- Run | Jun Mat Min Mat Min Exi Min Mat Gar Mat Gar Fac Gar Fac Gar Fac Gar Ext Cet Arc Hub Gar Fac Gar Fac Gar Res Arm Lab Res DSF Acc Total 14758 | 71 656 111 519 49 265 187 803 638 360 501 430 755 492 510 577 926 917 245 71 67 427 353 347 469 814 442 729 8 138 222 1659 Wait 442 | . 2 . 11 6 1 2 2 1 4 9 7 13 10 6 4 47 30 15 17 5 8 7 14 8 58 15 25 . . 27 88 Move 11502 | 48 578 109 380 43 259 165 665 511 302 417 353 607 442 411 466 666 638 152 38 57 383 295 273 370 604 369 457 8 118 114 1204 Hop . | . . . . . . . . . . . . . . . . . . . . . . . . . . . . . . . . Pick Up 246 | 11 11 1 11 . 1 3 13 10 6 6 7 11 4 4 11 31 9 9 . . 3 6 5 4 12 5 15 . 7 8 22 Fast Attach 136 | 4 5 . 4 . . . 7 1 1 6 11 10 1 1 5 11 4 4 2 . 3 3 4 5 7 6 8 . 3 2 18 Attach 149 | 3 3 . 10 . 1 . 6 5 3 4 9 10 . 1 9 19 2 2 1 . . 4 3 4 7 6 13 . 2 5 17 Detach 78 | . . . 4 . . . 2 . 1 2 5 5 . . 5 6 2 2 2 . . 2 4 5 8 6 4 . 1 4 8 Swap 661 | 1 17 . 22 . 1 5 31 28 12 16 8 32 16 27 26 47 53 13 3 3 12 6 22 28 37 13 72 . 1 19 90 Drop 275 | 1 9 1 13 . 2 3 21 10 7 7 14 9 6 4 8 29 12 18 . . 7 7 7 5 13 6 12 . 5 7 32 Fire 1107 | 3 31 . 64 . . 9 43 44 24 29 16 52 10 41 31 68 98 30 8 2 11 23 15 38 68 14 123 . 1 36 175 Melee 69 | . . . . . . . 13 16 . 5 . 6 3 10 12 2 2 . . . . . . . . . . . . . . Ram . | . . . . . . . . . . . . . . . . . . . . . . . . . . . . . . . . Kick . | . . . . . . . . . . . . . . . . . . . . . . . . . . . . . . . . Crush 11 | . . . . . . . . . . . . . . . . . 2 . . . . . . 2 . 2 . . . . 5 Escape Stasis 17 | . . . . . . . . 12 . . . . . 5 . . . . . . . . . . . . . . . . . Rewire 65 | . . . . . . . . . . . . . . . . . 65 . . . . . . . . . . . . . . Trap . | . . . . . . . . . . . . . . . . . . . . . . . . . . . . . . . . Miscellaneous . | . . . . . . . . . . . . . . . . . . . . . . . . . . . . . . . . Route ------- -11/Junkyard -10/Materials (discovered 5 exits: *Mat x3 / [*Min x2]) -10/Mines -9/Materials (discovered 2 exits: [*Min] / [*Sto]) -9/Mines -9/Exiles (discovered 2 exits: [*Min x2]) -8/Mines -8/Materials (discovered 2 exits: *Fac / Gar) -8/Garrison (discovered 3 exits: *Mat x3) -8/Materials (discovered 3 exits: *Fac x2 / Gar) -8/Garrison (discovered 3 exits: *Fac x3) -7/Factory -7/Garrison (discovered 3 exits: *Fac x3) -7/Factory -7/Garrison (discovered 3 exits: *Fac x3) -6/Factory (discovered 5 exits: *Fac / [*Low x2] / Ext / Gar) -6/Garrison (discovered 2 exits: *Ext x2) -6/Extension (discovered 3 exits: *Fac x2 / *Cet) -6/Cetus (discovered 2 exits: *Fac / [*Arc]) -6/Archives -6/Hub_04(d) -6/Garrison (discovered 2 exits: *Fac x2) -5/Factory (discovered 2 exits: [*Upp] / Gar) -5/Garrison (discovered 4 exits: *Fac x3 / [Fac]) -4/Factory (discovered 2 exits: *Res / Gar) -4/Garrison (discovered 3 exits: *Res x3) -3/Research (discovered 3 exits: [*Arm] / *Tes / Gar) -3/Armory (discovered 3 exits: *Res x2 / [*Lab]) -3/Lab -2/Research -2/DSF -1/Access To Epsilon Eridani History --------- Turn | Location | Event 13 | -11/Junkyard | Discovered new exit (range 14) 64 | -11/Junkyard | Entered Materials 135 | -10/Materials | Discovered new exit (range 13) 212 | -10/Materials | Discovered new exit (range 16) 303 | -10/Materials | Build established: Mutant 517 | -10/Materials | Discovered new exit (range 16) 576 | -10/Materials | Central database locked down 627 | -10/Materials | Discovered new exit (range 8) 649 | -10/Materials | Discovered new exit (range 6) 737 | -10/Materials | Entered Mines 759 | -10/Mines | Received a Rocket Launcher from a helpful Derelict 780 | -10/Mines | Learned location of Zion (-7) 842 | -10/Mines | Discovered new exit (range 5) 846 | -10/Mines | Entered Materials 846 | -9/Materials | Evolved 2 slots: Propulsion x1, Utility x1 1109 | -9/Materials | Discovered new exit (range 6) 1138 | -9/Materials | Discovered new exit (range 17) 1494 | -9/Materials | Entered Mines 1504 | -9/Mines | Learned Materials stockpile data 1505 | -9/Mines | Assisted by bots powering up and referring to "LRC-V3" 1533 | -9/Mines | Deemed a non-threat by the Exiles lab entrance 1533 | -9/Mines | Discovered new exit (range 5) 1546 | -9/Mines | Entered Exiles 1546 | -9/Exiles | Accompanied by 3 allies 1560 | -9/Exiles | Discovered new exit (range 16) 1573 | -9/Exiles | Met 8R-AWN 1587 | -9/Exiles | Met EX-HEX 1660 | -9/Exiles | Met EX-BIN 1671 | -9/Exiles | Aligned with FarCom system 1672 | -9/Exiles | Given EX-Vault access code 1697 | -9/Exiles | Opened EX-Vault 1704 | -9/Exiles | Found Latent Energy Streamer 1725 | -9/Exiles | Warned to stay clear of 0b10 Research branches 1753 | -9/Exiles | Met EX-DEC 1813 | -9/Exiles | Discovered new exit (range 10) 1824 | -9/Exiles | Left Exiles lab with Latent Energy Streamer 1824 | -9/Exiles | Entered Mines 1824 | -8/Mines | Accompanied by 3 allies 2033 | -8/Mines | Discovered new exit (range 3) 2038 | -8/Mines | Entered Materials 2038 | -8/Materials | Accompanied by 2 allies 2038 | -8/Materials | Evolved 2 slots: Utility x1, Weapon x1 2310 | -8/Materials | Discovered new exit (range 18) 2442 | -8/Materials | Central database locked down 2985 | -8/Materials | Identified exit to Garrison 2986 | -8/Materials | Entered Garrison 3088 | -8/Garrison | Triggered checkpoint 3109 | -8/Garrison | Triggered checkpoint 3158 | -8/Garrison | Discovered new exit (range 11) 3211 | -8/Garrison | Destroyed 8 combat bots 3271 | -8/Garrison | Triggered checkpoint 3299 | -8/Garrison | Garrison Relay disabled 3404 | -8/Garrison | Triggered checkpoint 3486 | -8/Garrison | Triggered checkpoint 3513 | -8/Garrison | Installed Relay Interface Framework 3580 | -8/Garrison | Learned Materials security intel 3593 | -8/Garrison | Discovered new exit (range 6) 3644 | -8/Garrison | Spotted B-75 Beast 3758 | -8/Garrison | Discovered new exit (range 12) 3859 | -8/Garrison | Entered Materials 4176 | -8/Materials | Discovered new exit (range 20) 4321 | -8/Materials | Discovered new exit (range 24) 4407 | -8/Materials | Identified exit to Garrison 4408 | -8/Materials | Entered Garrison 4408 | -8/Garrison | Accompanied by 1 ally 4484 | -8/Garrison | Triggered checkpoint 4517 | -8/Garrison | Expanded RIF knowledge: Patrol Navigation 4561 | -8/Garrison | Build established: Skirmisher 4604 | -8/Garrison | Triggered checkpoint 4694 | -8/Garrison | Discovered new exit (range 11) 4864 | -8/Garrison | Build established: Scavenger-Mutant 4906 | -8/Garrison | Discovered new exit (range 10) 5058 | -8/Garrison | Discovered new exit (range 12) 5109 | -8/Garrison | Triggered checkpoint 5114 | -8/Garrison | Core integrity fell below 50% 5164 | -8/Garrison | Garrison Relay disabled 5228 | -8/Garrison | Entered Factory 5228 | -7/Factory | Evolved 2 slots: Utility x2 5714 | -7/Factory | Found Prototype Launcher 5714 | -7/Factory | Identified Rocket Array 5833 | -7/Factory | Build established: Scavenger-Skirmisher 5894 | -7/Factory | Identified exit to Garrison 5897 | -7/Factory | Entered Garrison 6030 | -7/Garrison | Triggered checkpoint 6253 | -7/Garrison | Lost 7 parts (1p3n1u2w) 6292 | -7/Garrison | Triggered checkpoint 6393 | -7/Garrison | Discovered new exit (range 13) 6409 | -7/Garrison | Expanded RIF knowledge: Signal Jamming 6542 | -7/Garrison | Triggered checkpoint 6638 | -7/Garrison | Expanded RIF knowledge: Autooverride 6666 | -7/Garrison | Garrison Relay disabled 6851 | -7/Garrison | Discovered new exit (range 12) 6953 | -7/Garrison | Discovered new exit (range 11) 7035 | -7/Garrison | Entered Factory 7186 | -7/Factory | Build established: Mutant 7435 | -7/Factory | First assault squad dispatched 7539 | -7/Factory | System corruption reached 10% 7595 | -7/Factory | Identified exit to Garrison 7596 | -7/Factory | Entered Garrison 7678 | -7/Garrison | Triggered checkpoint 7716 | -7/Garrison | Triggered checkpoint 7725 | -7/Garrison | Triggered checkpoint 7776 | -7/Garrison | Destroyed 9 combat bots 7840 | -7/Garrison | Expanded RIF knowledge: Watcher Feeds 7848 | -7/Garrison | Discovered new exit (range 12) 7928 | -7/Garrison | Discovered new exit (range 8) 8062 | -7/Garrison | Triggered checkpoint 8129 | -7/Garrison | Garrison Relay disabled 8166 | -7/Garrison | Discovered new exit (range 13) 8200 | -7/Garrison | Entered Factory 8200 | -6/Factory | Evolved 2 slots: Propulsion x1, Utility x1 8399 | -6/Factory | Discovered new exit (range 34) 8399 | -6/Factory | Discovered new exit (range 65) 8550 | -6/Factory | First assault squad dispatched 8755 | -6/Factory | Discovered new exit (range 8) 8828 | -6/Factory | Discovered new exit (range 15) 8891 | -6/Factory | Identified exit to Garrison 8892 | -6/Factory | Lost 4 parts (2n2u) 8892 | -6/Factory | Entered Garrison 8956 | -6/Garrison | Triggered checkpoint 9016 | -6/Garrison | Spotted B-75 Beast 9035 | -6/Garrison | Destroyed B-75 Beast 9060 | -6/Garrison | System corruption reached 10% 9073 | -6/Garrison | System corruption reached 30% 9208 | -6/Garrison | Discovered new exit (range 8) 9332 | -6/Garrison | Triggered checkpoint 9332 | -6/Garrison | Triggered checkpoint 9363 | -6/Garrison | Lost 3 parts (3u) 9424 | -6/Garrison | Triggered checkpoint 9458 | -6/Garrison | Expanded RIF knowledge: Hotswap 9474 | -6/Garrison | Garrison Relay disabled 9709 | -6/Garrison | Discovered new exit (range 15) 9784 | -6/Garrison | Build established: Scavenger-Mutant 9884 | -6/Garrison | Expanded RIF knowledge: Robot Detection 10074 | -6/Garrison | Triggered checkpoint 10074 | -6/Garrison | Garrison Relay disabled 10188 | -6/Garrison | Garrison Relay disabled 10206 | -6/Garrison | Triggered checkpoint 10284 | -6/Garrison | Entered Extension 10568 | -6/Extension | Local machine network offline 10578 | -6/Extension | Build established: Botlord-Mutant 10634 | -6/Extension | First assault squad dispatched 10948 | -6/Extension | Build established: Bothacker-Mutant 11044 | -6/Extension | Spotted B-75 Beast 11093 | -6/Extension | Destroyed B-75 Beast 11128 | -6/Extension | Spotted B-75 Beast 11168 | -6/Extension | Destroyed B-75 Beast 11484 | -6/Extension | Disrupted transfer network 11489 | -6/Extension | Build established: Scavenger-Mutant 11495 | -6/Extension | Energy Cycler disabled 11501 | -6/Extension | Rescued a captive Derelict 11504 | -6/Extension | Rescued a captive Derelict 11505 | -6/Extension | Rescued a captive Derelict 11506 | -6/Extension | Discovered new exit (range 18) 11589 | -6/Extension | Rescued A7 11607 | -6/Extension | Destroyed 8 combat bots 11704 | -6/Extension | Discovered new exit (range 19) 11705 | -6/Extension | Discovered new exit (range 19) 11736 | -6/Extension | Entered Cetus 11736 | -6/Cetus | Accompanied by 3 allies (A7) 11741 | -6/Cetus | Acquired a Cetus Manufacturing Module code from A7 11759 | -6/Cetus | Spotted Cetus Guard 11760 | -6/Cetus | Spotted Cetus Guard 11761 | -6/Cetus | Spotted Cetus Guard 11768 | -6/Cetus | Allies destroyed Cetus Guard 11769 | -6/Cetus | Allies destroyed Cetus Guard 11771 | -6/Cetus | Destroyed Cetus Guard 11771 | -6/Cetus | Spotted Cetus Guard 11777 | -6/Cetus | Allies destroyed Cetus Guard 11916 | -6/Cetus | Started Cetus Manufacturing Module 11929 | -6/Cetus | Discovered new exit (range 20) 11941 | -6/Cetus | Manufactured an Enhanced Grunt 11961 | -6/Cetus | Spotted Cetus Guard 11963 | -6/Cetus | Spotted Cetus Guard 11965 | -6/Cetus | Spotted Cetus Guard 11966 | -6/Cetus | Manufactured an Enhanced Grunt 11969 | -6/Cetus | Allies destroyed Cetus Guard 11969 | -6/Cetus | Spotted Cetus Guard 11978 | -6/Cetus | Allies destroyed Cetus Guard 11984 | -6/Cetus | Allies destroyed Cetus Guard 11990 | -6/Cetus | Destroyed Cetus Guard 11991 | -6/Cetus | Manufactured an Enhanced Grunt 11994 | -6/Cetus | Discovered new exit (range 20) 12012 | -6/Cetus | Met Revision 17 12016 | -6/Cetus | Manufactured an Enhanced Grunt 12041 | -6/Cetus | Manufactured an Enhanced Grunt 12042 | -6/Cetus | Local machine network offline 12097 | -6/Cetus | Entered Archives 12097 | -6/Archives | Accompanied by 7 allies (A7) 12165 | -6/Archives | Discovered new exit (range 18) 12203 | -6/Archives | Entered Hub_04(d) 12203 | -6/Hub_04(d) | Accompanied by 6 allies 12306 | -6/Hub_04(d) | Identified exit to Garrison 12308 | -6/Hub_04(d) | Entered Garrison 12308 | -6/Garrison | Accompanied by 6 allies 12336 | -6/Garrison | Expanded RIF knowledge: Command Fork 12408 | -6/Garrison | Triggered checkpoint 12426 | -6/Garrison | Triggered checkpoint 12454 | -6/Garrison | Triggered checkpoint 12705 | -6/Garrison | Discovered new exit (range 8) 12720 | -6/Garrison | Triggered checkpoint 12733 | -6/Garrison | Garrison Relay disabled 12944 | -6/Garrison | Discovered new exit (range 12) 12982 | -6/Garrison | Entered Factory 12982 | -5/Factory | Accompanied by 5 allies 12982 | -5/Factory | Evolved 2 slots: Utility x2 13185 | -5/Factory | Spotted B-75 Beast 13317 | -5/Factory | Discovered new exit (range 16) 13520 | -5/Factory | Identified exit to Garrison 13535 | -5/Factory | Entered Garrison 13535 | -5/Garrison | Accompanied by 3 allies 13603 | -5/Garrison | Triggered checkpoint 13630 | -5/Garrison | Triggered checkpoint 13631 | -5/Garrison | Triggered checkpoint 13666 | -5/Garrison | Destroyed 8 combat bots 13804 | -5/Garrison | Triggered checkpoint 13826 | -5/Garrison | Discovered new exit (range 38) 13826 | -5/Garrison | Discovered new exit (range 67) 13826 | -5/Garrison | Discovered new exit (range 69) 13826 | -5/Garrison | Discovered new exit (range 75) 13844 | -5/Garrison | Garrison Relay disabled 13966 | -5/Garrison | Expanded RIF knowledge: Command Fork 14058 | -5/Garrison | System corruption reached 10% 14062 | -5/Garrison | System corruption reached 30% 14067 | -5/Garrison | Entered Factory 14067 | -4/Factory | Accompanied by 1 ally 14067 | -4/Factory | Evolved 2 slots: Utility x2 14741 | -4/Factory | Discovered new exit (range 26) 14745 | -4/Factory | Identified exit to Research 14805 | -4/Factory | Identified exit to Garrison 14806 | -4/Factory | Entered Garrison 14849 | -4/Garrison | System corruption reached 10% 14923 | -4/Garrison | Garrison Relay disabled 14954 | -4/Garrison | Build established: Botlord-Mutant 15105 | -4/Garrison | Triggered checkpoint 15125 | -4/Garrison | Spotted B-86 Titan 15132 | -4/Garrison | Triggered checkpoint 15155 | -4/Garrison | Destroyed B-86 Titan 15202 | -4/Garrison | Triggered checkpoint 15289 | -4/Garrison | Discovered exit to Research (range 8) 15306 | -4/Garrison | Expanded RIF knowledge: Coupler Efficiency 15396 | -4/Garrison | Triggered checkpoint 15444 | -4/Garrison | Triggered checkpoint 15500 | -4/Garrison | Discovered exit to Research (range 8) 15623 | -4/Garrison | Discovered exit to Research (range 12) 15696 | -4/Garrison | Triggered checkpoint 15763 | -4/Garrison | Spotted B-86 Titan 15817 | -4/Garrison | Allies destroyed B-86 Titan 15893 | -4/Garrison | Garrison Relay disabled 16014 | -4/Garrison | Expanded RIF knowledge: Coupler Efficiency 16028 | -4/Garrison | Triggered checkpoint 16051 | -4/Garrison | Entered Research 16051 | -3/Research | Accompanied by 2 allies 16051 | -3/Research | Evolved 2 slots: Utility x1, Weapon x1 16122 | -3/Research | Discovered new exit (range 32) 16136 | -3/Research | Identified exit to Testing 16223 | -3/Research | Spotted B-86 Titan 16251 | -3/Research | Revision forces began assault on 0b10 16316 | -3/Research | Build established: Scavenger-Skirmisher 16339 | -3/Research | Met up with Revision 17++ 16339 | -3/Research | P-80 Master assimilated allied Sentinel 7a 16640 | -3/Research | Identified exit to Garrison 16680 | -3/Research | Discovered new exit (range 9) 16719 | -3/Research | Entered Armory 16720 | -3/Armory | Met VL-GR5, who suggested a friendly competition 16998 | -3/Armory | First assault squad dispatched 17050 | -3/Armory | Destroyed 8 combat bots 17145 | -3/Armory | System corruption reached 10% 17208 | -3/Armory | Destroyed 7 combat bots 17229 | -3/Armory | Discovered new exit (range 10) 17410 | -3/Armory | System corruption reached 30% 17502 | -3/Armory | High security lockdown imminent 17582 | -3/Armory | High security lockdown engaged 17677 | -3/Armory | Destroyed 15 combat bots 17679 | -3/Armory | Lost 3 parts (1p1n1u) 17715 | -3/Armory | Assimilated ARC 8a with formatsys_deep 17715 | -3/Armory | Assimilated ARC 8b with formatsys_deep 17736 | -3/Armory | Discovered new exit (range 16) 17762 | -3/Armory | Assisted by bots powering up and referring to "LRC-V3" 17785 | -3/Armory | Discovered new exit (range 5) 17837 | -3/Armory | Spotted B-86 Titan 17860 | -3/Armory | Entered Lab 17860 | -3/Lab | Discovered new exit (range 9) 17873 | -3/Lab | Entered Research 17873 | -2/Research | Evolved 2 slots: Utility x1, Weapon x1 17895 | -2/Research | Identified exit to DSF 18066 | -2/Research | Found Unknown Device 18066 | -2/Research | Identified Antimissile System 18082 | -2/Research | Entered DSF 18103 | -2/DSF | Additional patrols routed to DSF 18111 | -2/DSF | Discovered new exit (range 22) 18197 | -2/DSF | Lost 3 parts (1u2w) 18272 | -2/DSF | Found Unknown Device 18399 | -2/DSF | Sterilization system engaged 18419 | -2/DSF | Ambient heat levels rising (+10) 18421 | -2/DSF | System corruption reached 10% 18425 | -2/DSF | Entered Access 18425 | -1/Access | Evolved 2 slots: Utility x2 18483 | -1/Access | Energy Cycler disabled 18635 | -1/Access | Destroyed 10 combat bots 18657 | -1/Access | System corruption reached 10% 19003 | -1/Access | Spotted B-99 Colossus 19025 | -1/Access | Found Adv. Powered Armor 19028 | -1/Access | Found Adv. Powered Armor 19147 | -1/Access | Spotted B-99 Colossus 19659 | -1/Access | Build established: Botlord-Mutant 20721 | -1/Access | Build established: Botlord-Skirmisher 20972 | -1/Access | Spotted B-99 Colossus 20972 | -1/Access | Spotted B-99 Colossus 21001 | -1/Access | Destroyed B-99 Colossus 21036 | -1/Access | System corruption reached 30% 21059 | -1/Access | Destroyed B-99 Colossus 21112 | -1/Access | Discovered new exit (range 5) 21118 | *** | Escaped! Last Messages --------------- 21059_ B-99 Colossus destroyed. 21062_ R-10 Processor collects Corrupted Hvy. Machine Gun. 21066_ System corrupted: Heat flow error (+155). 21066_ Com. Wheel fried. 21066_ R-10 Processor destroyed. 21067_ Short circuit averted by Adv. Cryofiber Web. 21068_ Power failure averted by Adv. Cryofiber Web. 21070_ Overheating: System interference. 21070_ Exp. Optical Array temporarily disabled. 21070_ System interference averted by Adv. Cryofiber Web. 21073_ Ended siege mode. 21078_ >> Watcher Feeds: Feed link from W-44 Eye lost. 21084_ Acquired 157 matter. 21091_ System corrupted: Component data lost. 21096_ Acquired 8 matter. 21102_ U-05 Engineer call for reinforcements jammed. 21110_ >> Watcher Feeds: Established visual feed link with W-44 Eye. 21112_ Main Access Shell breached. 21112_ EXIT=FOUND 21113_ SKJAZCWIZBAEOACS,I VO